fUSD/lending_fUSD_20241107
["ID","MTS","AMOUNT","RATE_DAILY","PERIOD"]
[341587210,1731011446177,-500.0,0.00027439,2]
[341587211,1731011446188,-436.21021595,0.00027439,2]
[341587212,1731011446199,-500.0,0.00027439,2]
[341587213,1731011446212,-500.0,0.00027439,2]
[341587215,1731011446223,-316.63535694,0.00027439,2]
[341587217,1731011446235,-500.0,0.00027439,2]
[341587220,1731011446248,-500.0,0.00027439,2]
[341587222,1731011446260,-500.0,0.00027439,2]
[341587224,1731011446272,-500.0,0.00027439,2]
[341587226,1731011446283,-500.0,0.00027439,2]
[341587229,1731011446296,-500.0,0.00027439,2]
[341587231,1731011446308,-500.0,0.00027439,2]
[341587233,1731011446320,-500.0,0.00027439,2]
[341587235,1731011446332,-718.23,0.00027439,2]
[341587237,1731011446345,-500.0,0.00027439,2]
[341587240,1731011446359,-500.0,0.00027439,2]
[341587242,1731011446371,-607.83,0.00027439,2]
[341587244,1731011446385,-500.0,0.00027439,2]
[341587246,1731011446398,-500.0,0.00027439,2]
[341587248,1731011446412,-500.0,0.00027439,2]
[341587251,1731011446426,-500.0,0.00027439,2]
[341587253,1731011446438,-760.46,0.00027439,2]
[341587255,1731011446451,-500.0,0.00027439,2]
[341587258,1731011446464,-500.0,0.00027439,2]
[341587260,1731011446476,-500.0,0.00027439,2]
[341587262,1731011446486,-500.0,0.00027439,2]
[341587264,1731011446495,-500.0,0.00027439,2]
[341587266,1731011446506,-500.0,0.00027439,2]
[341587268,1731011446516,-500.0,0.00027439,2]
[341587270,1731011446527,-500.0,0.00027439,2]
[341587272,1731011446536,-500.0,0.00027439,2]
[341587274,1731011446546,-500.0,0.00027439,2]
[341587276,1731011446558,-500.0,0.00027439,2]
[341587277,1731011446568,-1078.76,0.00027439,2]
[341587278,1731011446578,-500.0,0.00027439,2]
[341587280,1731011446589,-500.0,0.00027439,2]
[341587281,1731011446599,-500.0,0.00027439,2]
[341587283,1731011446612,-621.09,0.00027439,2]
[341587284,1731011446622,-500.0,0.00027439,2]
[341587286,1731011446631,-636.57,0.00027439,2]
[341587287,1731011446642,-500.0,0.00027439,2]
[341587288,1731011446652,-500.0,0.00027439,2]
[341587290,1731011446662,-675.43,0.00027439,2]
[341587291,1731011446672,-971.89,0.00027439,2]
[341587293,1731011446681,-500.0,0.00027439,2]
[341587294,1731011446691,-846.9,0.00027439,2]
[341587296,1731011446701,-500.0,0.00027439,2]
[341587297,1731011446711,-500.0,0.00027439,2]
[341587299,1731011446721,-500.0,0.00027439,2]
[341587300,1731011446731,-904.79,0.00027439,2]
[341587302,1731011446741,-572.85,0.00027439,2]
[341587303,1731011446751,-500.0,0.00027439,2]
[341587305,1731011446761,-500.0,0.00027439,2]
[341587306,1731011446771,-2160.92,0.00027439,2]
[341587308,1731011446781,-1767.52,0.00027439,2]
[341587309,1731011446792,-628.30865958,0.00027439,2]
[341587311,1731011446801,-500.0,0.00027439,2]
[341587344,1731011447360,-500.0,0.00027439,2]
[341587346,1731011447395,-1023.78,0.00027439,2]
[341587347,1731011447417,-829.37,0.00027439,2]
[341587348,1731011447440,-500.0,0.00027439,2]
[341587349,1731011447458,-236.69121523,0.00027439,2]
[341587350,1731011447502,-263.30878477,0.00027439,2]
[341587351,1731011447512,-500.0,0.00027439,2]
[341587353,1731011447522,-500.0,0.00027439,2]
[341587354,1731011447531,-500.0,0.00027439,2]
[341587356,1731011447541,-533.07,0.00027439,2]
[341587358,1731011447550,-500.0,0.00027439,2]
[341587360,1731011447560,-500.0,0.00027439,2]
[341587362,1731011447570,-500.0,0.00027439,2]
[341587364,1731011447580,-500.0,0.00027439,2]
[341587366,1731011447590,-500.0,0.00027439,2]
[341587368,1731011447599,-500.0,0.00027439,2]
[341587370,1731011447609,-974.74,0.00027439,2]
[341587372,1731011447619,-500.0,0.00027439,2]
[341587374,1731011447628,-896.64,0.00027439,2]
[341587376,1731011447637,-1608.14,0.00027439,2]
[341587378,1731011447647,-552.79,0.00027439,2]
[341587380,1731011447656,-500.0,0.00027439,2]
[341587382,1731011447666,-990.97,0.00027439,2]
[341587384,1731011447675,-2519.45,0.00027439,2]
[341587386,1731011447685,-500.0,0.00027439,2]
[341587388,1731011447694,-500.0,0.00027439,2]
[341587390,1731011447703,-1019.7,0.00027439,2]
[341587392,1731011447712,-500.0,0.00027439,2]
[341587394,1731011447721,-500.0,0.00027439,2]
[341587396,1731011447731,-500.0,0.00027439,2]
[341587398,1731011447740,-500.0,0.00027439,2]
[341587399,1731011447749,-500.0,0.00027439,2]
[341587401,1731011447758,-500.0,0.00027439,2]
[341587403,1731011447768,-500.0,0.00027439,2]
[341587405,1731011447777,-500.0,0.00027439,2]
[341587407,1731011447786,-601.24,0.00027439,2]
[341587409,1731011447796,-774.76,0.00027439,2]
[341587411,1731011447805,-500.0,0.00027439,2]
[341587413,1731011447814,-500.0,0.00027439,2]
[341587415,1731011447823,-500.0,0.00027439,2]
[341587417,1731011447832,-4435.81,0.00027439,2]
[341587419,1731011447842,-500.0,0.00027439,2]
[341587420,1731011447851,-538.61,0.00027439,2]
[341587422,1731011447863,-500.0,0.00027439,2]
[341587424,1731011447872,-551.51,0.00027439,2]
[341587426,1731011447882,-1241.37,0.00027439,2]
[341587428,1731011447891,-500.0,0.00027439,2]
[341587430,1731011447900,-500.0,0.00027439,2]
[341587432,1731011447910,-500.0,0.00027439,2]
[341587434,1731011447919,-500.0,0.00027439,2]
[341587436,1731011447929,-500.0,0.00027439,2]
[341587438,1731011447939,-778.73,0.00027439,2]
[341587439,1731011447951,-500.0,0.00027439,2]
[341587441,1731011447961,-500.0,0.00027439,2]
[341587443,1731011447972,-501.84821429,0.00027439,2]
[341587445,1731011447982,-500.0,0.00027439,2]
[341587447,1731011447994,-518.46,0.00027439,2]
[341587450,1731011448005,-500.0,0.00027439,2]
[341587451,1731011448014,-500.0,0.00027439,2]
[341587453,1731011448024,-500.0,0.00027439,2]
[341587455,1731011448034,-679.23,0.00027439,2]
[341587457,1731011448043,-500.0,0.00027439,2]
[341587459,1731011448054,-500.0,0.00027439,2]
[341587461,1731011448064,-500.0,0.00027439,2]
[341587462,1731011448074,-162.45523555,0.00027439,2]
[341587463,1731011448083,-530.41,0.00027439,2]
[341587464,1731011448093,-264.58082948,0.00027439,2]
[341587465,1731011448112,-235.41917052,0.00027439,2]
[341587466,1731011448122,-500.0,0.00027439,2]
[341587467,1731011448131,-500.0,0.00027439,2]
[341587468,1731011448141,-500.0,0.00027439,2]
[341587469,1731011448151,-502.00193626,0.00027439,2]
[341587470,1731011448161,-500.0,0.00027439,2]
[341587471,1731011448171,-500.0,0.00027439,2]
[341587472,1731011448180,-500.0,0.00027439,2]
[341587473,1731011448190,-622.26,0.00027439,2]
[341587474,1731011448200,-677.13,0.00027439,2]
[341587475,1731011448210,-500.0,0.00027439,2]
[341587476,1731011448220,-500.0,0.00027439,2]
[341587477,1731011448229,-1177.17,0.00027439,2]
[341587478,1731011448240,-500.0,0.00027439,2]
[341587479,1731011448249,-341.27058128,0.00027439,2]
[341587480,1731011448260,-500.0,0.00027439,2]
[341587481,1731011448270,-500.0,0.00027439,2]
[341587482,1731011448279,-500.0,0.00027439,2]
[341587483,1731011448289,-1091.31,0.00027439,2]
[341587484,1731011448299,-522.84,0.00027439,2]
[341587485,1731011448309,-661.37,0.00027439,2]
[341587486,1731011448319,-599.74,0.00027439,2]
[341587487,1731011448328,-1275.41,0.00027439,2]
[341587488,1731011448338,-565.08732961,0.00027439,2]
[341587489,1731011448348,-1084.34,0.00027439,2]
[341587490,1731011448358,-500.0,0.00027439,2]
[341587491,1731011448369,-500.0,0.00027439,2]
[341587492,1731011448379,-500.0,0.00027439,2]
[341587493,1731011448389,-827.61,0.00027439,2]
[341587494,1731011448399,-500.0,0.00027439,2]
[341587495,1731011448409,-500.0,0.00027439,2]
[341587496,1731011448425,-800.46,0.00027439,2]
[341587497,1731011448436,-500.0,0.00027439,2]
[341587498,1731011448446,-581.87,0.00027439,2]
[341587499,1731011448455,-500.0,0.00027439,2]
[341587500,1731011448467,-500.0,0.00027439,2]
[341587501,1731011448477,-500.0,0.00027439,2]
[341587502,1731011448487,-863.17,0.00027439,2]
[341587503,1731011448497,-500.0,0.00027439,2]
[341587504,1731011448508,-458.98,0.00027439,2]
[341587505,1731011448517,-546.47,0.00027439,2]
[341587506,1731011448527,-500.0,0.00027439,2]
[341587507,1731011448537,-500.0,0.00027439,2]
[341587508,1731011448546,-500.0,0.00027439,2]
[341587509,1731011448556,-707.95,0.00027439,2]
[341587510,1731011448566,-500.0,0.00027439,2]
[341587511,1731011448575,-963.34,0.00027439,2]
[341587512,1731011448585,-500.0,0.00027439,2]
[341587513,1731011448595,-500.0,0.00027439,2]
[341587514,1731011448604,-1137.63,0.00027439,2]
[341587515,1731011448618,-512.69,0.00027439,2]
[341587516,1731011448628,-500.0,0.00027439,2]
[341587517,1731011448638,-2127.02,0.00027439,2]
[341587518,1731011448648,-500.0,0.00027439,2]
[341587519,1731011448660,-890.32,0.00027439,2]
[341587520,1731011448670,-1288.66,0.00027439,2]
[341587521,1731011448680,-500.0,0.00027439,2]
[341587522,1731011448690,-346.44656923,0.00027439,2]
[341587523,1731011448701,-500.0,0.00027439,2]
[341587524,1731011448711,-500.0,0.00027439,2]
[341587525,1731011448721,-503.11,0.00027439,2]
[341587526,1731011448734,-500.0,0.00027439,2]
[341587527,1731011448744,-1530.92,0.00027439,2]
[341587528,1731011448755,-151.0,0.00027439,7]
[341587529,1731011448766,-500.0,0.00027439,2]
[341587530,1731011448776,-500.0,0.00027439,2]
[341587531,1731011448789,-785.3,0.00027439,2]
[341587532,1731011448807,-500.0,0.00027439,2]
[341587533,1731011448817,-500.0,0.00027439,2]
[341587534,1731011448827,-500.0,0.00027439,2]
[341587535,1731011448838,-954.08,0.00027439,2]
[341587536,1731011448847,-500.0,0.00027439,2]
[341587537,1731011448858,-500.0,0.00027439,2]
[341587538,1731011448868,-500.0,0.00027439,2]
[341587539,1731011448878,-500.0,0.00027439,2]
[341587540,1731011448888,-1375.62,0.00027439,2]
[341587541,1731011448898,-500.0,0.00027439,2]
[341587542,1731011448908,-151.0,0.00027439,7]
[341587543,1731011448918,-618.68,0.00027439,2]
[341587544,1731011448927,-554.15,0.00027439,2]
[341587545,1731011448939,-508.01,0.00027439,2]
[341587546,1731011448951,-500.0,0.00027439,2]
[341587547,1731011448961,-706.5,0.00027439,2]
[341587548,1731011448971,-500.0,0.00027439,2]
[341587549,1731011448981,-790.428663,0.00027439,7]
[341587550,1731011448991,-790.428663,0.00027439,7]
[341587551,1731011449001,-659.14,0.00027439,2]
[341587552,1731011449012,-1684.43,0.00027439,2]
[341587553,1731011449022,-500.0,0.00027439,2]
[341587554,1731011449032,-500.0,0.00027439,2]
[341587555,1731011449042,-500.0,0.00027439,2]
[341587556,1731011449052,-365.69750763,0.00027439,2]
[341587557,1731011449061,-552.93,0.00027439,2]
[341587558,1731011449071,-620.12,0.00027439,2]
[341587559,1731011449081,-629.42,0.00027439,2]
[341587560,1731011449090,-151.0,0.00027439,7]
[341587561,1731011449100,-151.0,0.00027439,7]
[341587562,1731011449109,-610.30084979,0.00027439,2]
[341587563,1731011449119,-500.0,0.00027439,2]
[341587564,1731011449128,-500.0,0.00027439,2]
[341587565,1731011449138,-1604.7,0.00027439,2]
[341587566,1731011449147,-1037.8,0.00027439,2]
[341587567,1731011449158,-500.0,0.00027439,2]
[341587568,1731011449167,-151.0,0.00027439,7]
[341587569,1731011449177,-411.960432,0.00027439,7]
[341587570,1731011449186,-634.53,0.00027439,2]
[341587571,1731011449196,-411.960432,0.00027439,7]
[341587572,1731011449206,-347.026174,0.00027439,7]
[341587573,1731011449215,-500.0,0.00027439,2]
[341587574,1731011449225,-347.026174,0.00027439,7]
[341587575,1731011449234,-1008.13,0.00027439,2]
[341587576,1731011449244,-500.0,0.00027439,2]
[341587577,1731011449254,-500.0,0.00027439,2]
[341587578,1731011449264,-888.49,0.00027439,2]
[341587579,1731011449274,-500.0,0.00027439,2]
[341587580,1731011449284,-665.72,0.00027439,2]
[341587581,1731011449293,-500.0,0.00027439,2]
[341587582,1731011449303,-602.82,0.00027439,2]
[341587583,1731011449312,-500.0,0.00027439,2]
[341587584,1731011449322,-845.97,0.00027439,2]
[341587585,1731011449332,-547.08463542,0.00027439,2]
[341587586,1731011449346,-118.58536458,0.00027439,2]
[341587587,1731011449356,-500.0,0.00027439,2]
[341587588,1731011449367,-151.0,0.00027439,7]
[341587589,1731011449377,-500.0,0.00027439,2]
[341587590,1731011449387,-151.0,0.00027439,7]
[341587591,1731011449396,-151.0,0.00027439,7]
[341587592,1731011449406,-779.11,0.00027439,2]
[341587593,1731011449417,-500.0,0.00027439,2]
[341587594,1731011449427,-151.0,0.00027439,7]
[341587595,1731011449436,-151.0,0.00027439,7]
[341587596,1731011449446,-500.0,0.00027439,2]
[341587597,1731011449456,-500.0,0.00027439,2]
[341587598,1731011449466,-595.99,0.00027439,2]
[341587599,1731011449475,-1260.12,0.00027439,2]
[341587600,1731011449485,-151.0,0.00027439,7]
[341587601,1731011449495,-220.0,0.0002744,2]
[341587602,1731011449505,-2000.0,0.0002744,2]
[341587603,1731011449515,-200.0,0.0002744,2]
[341587604,1731011449525,-200.0,0.0002744,2]
[341587605,1731011449535,-6582.5583061,0.00027442,2]
[341587606,1731011449545,-170.68,0.00027461,30]
[341587607,1731011449554,-152.824735,0.00027462,7]
[341587608,1731011449564,-304.431527,0.00027462,2]
[341587609,1731011449574,-304.431527,0.00027462,2]
[341587610,1731011449583,-1050.0,0.000275,2]
[341587611,1731011449593,-3659.0,0.000275,2]
[341587612,1731011449603,-595.99,0.00027538,2]
[341587613,1731011449613,-993.4,0.00027539,2]
[341587614,1731011449623,-500.0,0.00027539,2]
[341587615,1731011449634,-500.0,0.00027539,2]
[341587616,1731011449644,-151.0,0.00027539,7]
[341587617,1731011449654,-1858.207835,0.00027539,7]
[341587618,1731011449664,-1858.207835,0.00027539,7]
[341587619,1731011449674,-151.0,0.00027539,7]
[341587620,1731011449684,-151.0,0.00027539,7]
[341587621,1731011449694,-196.027821,0.00027539,7]
[341587622,1731011449704,-196.027821,0.00027539,7]
[341587623,1731011449713,-3273.297285,0.00027539,7]
[341587624,1731011449724,-151.0,0.00027539,7]
[341587625,1731011449733,-500.0,0.0002754,2]
[341587626,1731011449743,-500.0,0.0002754,2]
[341587627,1731011449753,-621.18,0.0002754,2]
[341587628,1731011449762,-500.0,0.0002754,2]
[341587629,1731011449773,-500.0,0.0002754,2]
[341587630,1731011449782,-500.0,0.0002754,2]
[341587631,1731011449792,-690.39,0.0002754,2]
[341587632,1731011449801,-500.0,0.0002754,2]
[341587633,1731011449811,-500.0,0.0002754,2]
[341587634,1731011449821,-500.0,0.0002754,2]
[341587635,1731011449831,-151.0,0.0002754,7]
[341587636,1731011449841,-155.817976,0.0002754,7]
[341587637,1731011449853,-151.0,0.0002754,7]
[341587638,1731011449864,-151.0,0.0002754,7]
[341587639,1731011449873,-267.972963,0.0002754,7]
[341587640,1731011449884,-267.972963,0.0002754,7]
[341587641,1731011449894,-155.25188086,0.00027571,2]
[341587642,1731011449904,-235.7,0.00027612,120]
[341587643,1731011449914,-700.0,0.00027614,7]
[341587644,1731011449924,-163.90428723,0.0002762,2]
[341587645,1731011449933,-258.51,0.00027649,2]
[341587646,1731011449943,-500.0,0.00027671,2]
[341587647,1731011449958,-570.71566603,0.00027671,2]
[341587648,1731011449967,-500.0,0.00027671,2]
[341587649,1731011449977,-500.0,0.00027671,2]
[341587650,1731011449986,-500.0,0.00027671,2]
[341587651,1731011449997,-500.0,0.00027671,2]
[341587652,1731011450007,-500.0,0.00027671,2]
[341587653,1731011450016,-500.0,0.00027671,2]
[341587654,1731011450028,-500.0,0.00027671,2]
[341587655,1731011450038,-552.89,0.00027671,2]
[341587656,1731011450048,-500.0,0.00027671,2]
[341587657,1731011450058,-500.0,0.00027671,2]
[341587658,1731011450067,-500.0,0.00027671,2]
[341587659,1731011450270,-500.0,0.00027671,2]
[341587660,1731011450294,-500.0,0.00027671,2]
[341587661,1731011450304,-500.0,0.00027671,2]
[341587662,1731011450314,-996.29,0.00027671,2]
[341587663,1731011450325,-500.0,0.00027671,2]
[341587664,1731011450335,-832.94,0.00027671,2]
[341587665,1731011450345,-656.7,0.00027671,2]
[341587666,1731011450354,-500.0,0.00027671,2]
[341587667,1731011450365,-500.0,0.00027671,2]
[341587668,1731011450374,-500.0,0.00027671,2]
[341587669,1731011450384,-500.0,0.00027671,2]
[341587670,1731011450393,-500.0,0.00027671,2]
[341587671,1731011450403,-500.0,0.00027671,2]
[341587672,1731011450413,-500.0,0.00027671,2]
[341587673,1731011450424,-622.33,0.00027671,2]
[341587674,1731011450433,-500.0,0.00027671,2]
[341587675,1731011450443,-646.88572834,0.00027671,2]
[341587676,1731011450452,-500.0,0.00027671,2]
[341587677,1731011450462,-500.0,0.00027671,2]
[341587678,1731011450473,-735.0,0.00027671,2]
[341587679,1731011450482,-500.0,0.00027671,2]
[341587680,1731011450492,-500.0,0.00027671,2]
[341587681,1731011450501,-500.0,0.00027671,2]
[341587682,1731011450511,-500.0,0.00027671,2]
[341587683,1731011450521,-1157.84,0.00027671,2]
[341587684,1731011450531,-500.0,0.00027671,2]
[341587685,1731011450542,-500.0,0.00027671,2]
[341587686,1731011450552,-500.0,0.00027671,2]
[341587687,1731011450562,-500.0,0.00027671,2]
[341587688,1731011450571,-500.0,0.00027671,2]
[341587690,1731011450582,-500.0,0.00027671,2]
[341587691,1731011450591,-500.0,0.00027671,2]
[341587692,1731011450601,-500.0,0.00027671,2]
[341587693,1731011450611,-664.88,0.00027671,2]
[341587694,1731011450621,-500.0,0.00027671,2]
[341587695,1731011450630,-842.0,0.00027671,2]
[341587696,1731011450640,-500.0,0.00027671,2]
[341587697,1731011450650,-500.0,0.00027671,2]
[341587698,1731011450659,-500.0,0.00027671,2]
[341587699,1731011450669,-500.0,0.00027671,2]
[341587700,1731011450679,-500.0,0.00027671,2]
[341587701,1731011450691,-500.0,0.00027671,2]
[341587702,1731011450701,-500.0,0.00027671,2]
[341587703,1731011450711,-500.0,0.00027671,2]
[341587704,1731011450720,-500.0,0.00027671,2]
[341587705,1731011450730,-500.0,0.00027671,2]
[341587706,1731011450739,-500.0,0.00027671,2]
[341587707,1731011450749,-500.0,0.00027671,2]
[341587708,1731011450757,-500.0,0.00027671,2]
[341587709,1731011450767,-500.0,0.00027671,2]
[341587710,1731011450776,-849.33,0.00027671,2]
[341587711,1731011450786,-500.0,0.00027671,2]
[341587712,1731011450796,-500.0,0.00027671,2]
[341587713,1731011450805,-500.0,0.00027671,2]
[341587714,1731011450815,-393.60847888,0.00027671,2]
[341587715,1731011451310,-106.39152112,0.00027671,2]
[341587716,1731011451320,-1146.86,0.00027671,2]
[341587717,1731011451329,-500.0,0.00027671,2]
[341587718,1731011451339,-500.0,0.00027671,2]
[341587719,1731011451348,-500.0,0.00027671,2]
[341587720,1731011451357,-2367.1,0.00027671,2]
[341587721,1731011451368,-812.73,0.00027671,2]
[341587722,1731011451378,-500.0,0.00027671,2]
[341587723,1731011451387,-500.0,0.00027671,2]
[341587724,1731011451397,-505.41,0.00027671,2]
[341587725,1731011451407,-500.0,0.00027671,2]
[341587726,1731011451418,-859.78,0.00027671,2]
[341587727,1731011451427,-500.0,0.00027671,2]
[341587728,1731011451437,-1030.59,0.00027671,2]
[341587729,1731011451446,-645.97863028,0.00027671,2]
[341587730,1731011451457,-500.0,0.00027671,2]
[341587731,1731011451466,-500.0,0.00027671,2]
[341587732,1731011451476,-500.0,0.00027671,2]
[341587733,1731011451486,-500.0,0.00027671,2]
[341587734,1731011451495,-500.0,0.00027671,2]
[341587735,1731011451505,-1049.18,0.00027671,2]
[341587736,1731011451515,-758.06,0.00027671,2]
[341587737,1731011451525,-500.0,0.00027671,2]
[341587738,1731011451535,-500.0,0.00027671,2]
[341587739,1731011451544,-584.38,0.00027671,2]
[341587740,1731011451554,-500.0,0.00027671,2]
[341587741,1731011451564,-795.48,0.00027671,2]
[341587742,1731011451574,-772.33,0.00027671,2]
[341587743,1731011451583,-400.6336328,0.00027671,2]
[341587744,1731011451593,-500.0,0.00027671,2]
[341587745,1731011451603,-500.0,0.00027671,2]
[341587746,1731011451612,-500.0,0.00027671,2]
[341587747,1731011451621,-500.0,0.00027671,2]
[341587748,1731011451631,-826.25,0.00027671,2]
[341587749,1731011451640,-500.0,0.00027671,2]
[341587750,1731011451650,-500.0,0.00027671,2]
[341587751,1731011451659,-500.0,0.00027671,2]
[341587752,1731011451668,-922.87,0.00027671,2]
[341587753,1731011451678,-500.0,0.00027671,2]
[341587754,1731011451688,-637.95784629,0.00027671,2]
[341587755,1731011451697,-500.0,0.00027671,2]
[341587756,1731011451707,-570.07,0.00027671,2]
[341587757,1731011451716,-500.0,0.00027671,2]
[341587758,1731011451725,-990.65,0.00027671,2]
[341587759,1731011451734,-500.0,0.00027671,2]
[341587760,1731011451743,-1391.61,0.00027671,2]
[341587761,1731011451753,-500.0,0.00027671,2]
[341587762,1731011451762,-962.46,0.00027671,2]
[341587763,1731011451771,-500.0,0.00027671,2]
[341587764,1731011451781,-500.0,0.00027671,2]
[341587765,1731011451790,-525.18,0.00027671,2]
[341587766,1731011451800,-500.0,0.00027671,2]
[341587767,1731011451810,-746.75,0.00027671,2]
[341587768,1731011451819,-500.0,0.00027671,2]
[341587769,1731011451828,-500.0,0.00027671,2]
[341587770,1731011451838,-500.0,0.00027671,2]
[341587771,1731011451847,-500.0,0.00027671,2]
[341587772,1731011451857,-500.0,0.00027671,2]
[341587773,1731011451868,-500.0,0.00027671,2]
[341587774,1731011451882,-500.0,0.00027671,2]
[341587775,1731011451891,-500.0,0.00027671,2]
[341587776,1731011451900,-623.38,0.00027671,2]
[341587777,1731011451909,-500.0,0.00027671,2]
[341587778,1731011451919,-500.0,0.00027671,2]
[341587779,1731011451929,-1391.91,0.00027671,2]
[341587780,1731011451939,-500.0,0.00027671,2]
[341587781,1731011451949,-617.28081356,0.00027671,2]
[341587782,1731011451960,-500.0,0.00027671,2]
[341587783,1731011451970,-513.5,0.00027671,2]
[341587784,1731011451979,-500.0,0.00027671,2]
[341587785,1731011451989,-500.0,0.00027671,2]
[341587786,1731011451999,-500.0,0.00027671,2]
[341587787,1731011452008,-500.0,0.00027671,2]
[341587788,1731011452018,-500.0,0.00027671,2]
[341587789,1731011452028,-500.0,0.00027671,2]
[341587790,1731011452037,-500.0,0.00027671,2]
[341587791,1731011452047,-500.0,0.00027671,2]
[341587792,1731011452057,-500.0,0.00027671,2]
[341587793,1731011452067,-741.21,0.00027671,2]
[341587794,1731011452076,-500.0,0.00027671,2]
[341587795,1731011452085,-500.0,0.00027671,2]
[341587796,1731011452094,-500.0,0.00027671,2]
[341587797,1731011452104,-632.28,0.00027671,2]
[341587798,1731011452114,-708.91,0.00027671,2]
[341587799,1731011452123,-782.76,0.00027671,2]
[341587800,1731011452133,-426.03311911,0.00027671,2]
[341587801,1731011452142,-500.0,0.00027671,2]
[341587802,1731011452151,-358.9,0.00027671,2]
[341587803,1731011452160,-500.0,0.00027671,2]
[341587804,1731011452170,-602.34,0.00027671,2]
[341587805,1731011452179,-500.0,0.00027671,2]
[341587806,1731011452188,-500.0,0.00027671,2]
[341587807,1731011452197,-500.0,0.00027671,2]
[341587808,1731011452206,-500.45,0.00027671,2]
[341587809,1731011452216,-500.0,0.00027671,2]
[341587810,1731011452226,-498.94796528,0.00027671,2]
[341587811,1731011452238,-500.0,0.00027671,2]
[341587812,1731011452247,-500.0,0.00027671,2]
[341587813,1731011452258,-500.0,0.00027671,2]
[341587814,1731011452267,-500.0,0.00027671,2]
[341587815,1731011452276,-500.0,0.00027671,2]
[341587816,1731011452285,-513.55,0.00027671,2]
[341587817,1731011452295,-500.0,0.00027671,2]
[341587818,1731011452305,-500.0,0.00027671,2]
[341587819,1731011452316,-500.0,0.00027671,2]
[341587820,1731011452327,-500.0,0.00027671,2]
[341587821,1731011452337,-847.49,0.00027671,2]
[341587822,1731011452347,-500.0,0.00027671,2]
[341587823,1731011452356,-627.61,0.00027671,2]
[341587824,1731011452367,-500.0,0.00027671,2]
[341587825,1731011452376,-500.0,0.00027671,2]
[341587826,1731011452385,-415.68922287,0.00027671,2]
[341587827,1731011452395,-343.42005047,0.00027671,2]
[341587828,1731011452404,-758.1,0.00027671,2]
[341587829,1731011452414,-500.0,0.00027671,2]
[341587830,1731011452425,-500.0,0.00027671,2]
[341587831,1731011452434,-500.0,0.00027671,2]
[341587832,1731011452443,-500.0,0.00027671,2]
[341587833,1731011452453,-500.0,0.00027671,2]
[341587834,1731011452462,-500.0,0.00027671,2]
[341587835,1731011452471,-500.0,0.00027671,2]
[341587836,1731011452480,-500.0,0.00027671,2]
[341587837,1731011452490,-521.08,0.00027671,2]
[341587838,1731011452499,-500.0,0.00027671,2]
[341587839,1731011452508,-1032.51,0.00027671,2]
[341587840,1731011452517,-500.0,0.00027671,2]
[341587841,1731011452527,-500.0,0.00027671,2]